bitfinex-derivatives/quotes_BTCF0:USTF0_20240903
["timestamp","ask_amount","ask_price","bid_price","bid_amount"]
[1725390696953,0.8886848,58186.0,58185.0,0.001]
[1725390697150,0.08596,58181.0,58180.0,0.36105789]
[1725390697354,0.08636,58181.0,58180.0,0.36105789]
[1725390697843,0.08436,58181.0,58180.0,0.36105789]
[1725390698648,0.09236,58181.0,58180.0,0.36205789]
[1725390699358,0.10136,58181.0,58180.0,0.36305789]
[1725390700350,0.0174,58181.0,58180.0,0.66305789]
[1725390700553,0.0174,58181.0,58180.0,0.74901889]
[1725390703660,0.0174,58181.0,58180.0,0.44901889]
[1725390704962,0.07016795,58181.0,58180.0,0.44901889]
[1725390705669,0.15612795,58181.0,58180.0,0.36305789]
[1725390706361,0.10336,58181.0,58180.0,0.36305789]
[1725390706659,0.21336,58181.0,58180.0,0.36305789]
[1725390708560,0.29932,58181.0,58180.0,0.00225789]
[1725390709563,0.22413559,58181.0,58180.0,0.00225789]
[1725390709961,0.31009559,58181.0,58180.0,0.00225789]
[1725390710371,1.23009559,58181.0,58180.0,0.00225789]
[1725390710868,0.31009559,58181.0,58180.0,0.00225789]
[1725390711468,0.20009559,58181.0,58180.0,0.00225789]
[1725390712066,0.11413559,58181.0,58180.0,0.00225789]
[1725390712254,0.16413559,58181.0,58180.0,0.00225789]
[1725390712455,1.28977559,58181.0,58180.0,0.00225789]
[1725390713770,1.22977559,58181.0,58180.0,0.00225789]
[1725390714264,0.0174,58181.0,58180.0,0.68901889]
[1725390715661,0.0174,58181.0,58180.0,0.73681889]
[1725390718471,0.0174,58181.0,58180.0,0.82277989]
[1725390720167,0.0174,58181.0,58180.0,0.73681889]
[1725390720375,0.10336,58181.0,58180.0,0.44901889]
[1725390720878,0.10336,58181.0,58180.0,0.68901889]
[1725390722073,0.0174,58181.0,58180.0,0.68901889]
[1725390722673,0.02782852,58181.0,58180.0,0.68901889]
[1725390723675,0.19974852,58181.0,58180.0,0.36305789]
[1725390723872,0.54346852,58181.0,58180.0,0.08821889]
[1725390724184,0.02782852,58181.0,58180.0,0.08821889]
[1725390724677,0.35378852,58181.0,58180.0,0.00225789]
[1725390725691,1.46942852,58181.0,58180.0,0.00225789]
[1725390726077,1.52942852,58181.0,58180.0,0.00225789]
[1725390726279,1.52942852,58181.0,58169.0,0.004]
[1725390726280,0.085972,58173.0,58169.0,0.089976]
[1725390726472,0.0004,58170.0,58169.0,0.085976]
[1725390726982,0.085981,58167.0,58162.0,0.085987]
[1725390727478,0.0004,58163.0,58162.0,0.085987]
[1725390727684,0.0004,58163.0,58159.0,0.24025789]
[1725390727873,0.0004,58160.0,58159.0,0.32624989]
[1725390729087,0.0004,58160.0,58159.0,0.33624989]
[1725390729088,0.0014,58160.0,58159.0,0.33624989]
[1725390729589,0.087391,58160.0,58159.0,0.01025789]
[1725390729977,0.088391,58160.0,58159.0,0.01825789]
[1725390730186,1.290222,58160.0,58159.0,0.01825789]
[1725390730484,0.088391,58160.0,58159.0,0.01825789]
[1725390731485,0.087391,58160.0,58159.0,0.00825789]
[1725390731676,0.096391,58160.0,58159.0,0.00925789]
[1725390732076,1.212231,58160.0,58159.0,0.00925789]
[1725390732984,1.298222,58160.0,58159.0,0.00925789]
[1725390733279,0.086003,58152.0,58151.0,0.004]
[1725390733485,0.24,58152.0,58144.0,0.3608]
[1725390733787,0.326013,58145.0,58144.0,0.3608]
[1725390733990,0.326013,58145.0,58133.0,0.3608]
[1725390733991,0.086014,58144.0,58133.0,0.3608]
[1725390734178,0.2394,58135.0,58133.0,0.36105789]
[1725390734378,0.0004,58134.0,58133.0,0.36105789]
[1725390734585,0.0004,58134.0,58133.0,0.44708889]
[1725390734977,0.0004,58134.0,58133.0,0.36105789]
[1725390735179,0.086023,58139.0,58133.0,0.36105789]
[1725390735689,0.006,58134.0,58133.0,0.36205789]
[1725390736388,0.086023,58139.0,58133.0,0.36205789]
[1725390736389,0.094023,58139.0,58133.0,0.36205789]
[1725390736590,0.24,58137.0,58133.0,0.36205789]
[1725390737491,0.009,58134.0,58133.0,0.36205789]
[1725390738184,0.095029,58134.0,58133.0,0.00125789]
[1725390738382,0.086029,58134.0,58133.0,0.00025789]
[1725390738583,0.094029,58134.0,58133.0,0.00125789]
[1725390739490,0.611069,58134.0,58133.0,0.00125789]
[1725390739890,0.53604,58134.0,58133.0,0.00225789]
[1725390740095,0.02,58134.0,58133.0,0.08828889]
[1725390740789,0.023,58134.0,58133.0,1.29035989]
[1725390740991,0.00722633,58134.0,58133.0,1.37639089]
[1725390741199,0.01922633,58134.0,58133.0,1.37639089]
[1725390741497,0.00025789,58145.0,58144.0,0.086014]
[1725390741795,0.00025789,58145.0,58144.0,0.686814]
[1725390742593,0.01425789,58145.0,58144.0,0.687814]
[1725390743286,0.02025789,58145.0,58144.0,0.688814]
[1725390743988,0.02025789,58145.0,58144.0,0.748814]
[1725390745288,0.02025789,58145.0,58144.0,0.448814]
[1725390747190,0.02025789,58145.0,58144.0,0.748814]
[1725390751299,0.02025789,58145.0,58144.0,0.834828]
[1725390752202,0.02025789,58145.0,58144.0,1.436802]
[1725390752393,0.004,58165.0,58158.0,0.085994]
[1725390752596,0.01038356,58165.0,58158.0,1.0216]
[1725390752809,0.085967,58176.0,58164.0,0.6608]
[1725390753002,0.085967,58176.0,58175.0,0.6608]
[1725390753203,0.085962,58180.0,58178.0,0.085964]
[1725390753402,0.0498,58186.0,58180.0,0.085961]
[1725390753403,0.00025789,58185.0,58180.0,0.085961]
[1725390753600,0.00025789,58185.0,58180.0,0.3608]
[1725390753802,0.08596,58181.0,58180.0,0.3608]
[1725390754006,0.00025789,58185.0,58180.0,0.3608]
[1725390754315,0.08621289,58185.0,58180.0,0.3608]
[1725390755496,0.08621289,58185.0,58180.0,0.3628]
[1725390756714,0.04025789,58185.0,58180.0,0.3628]
[1725390756914,0.04025789,58185.0,58181.0,0.3]
[1725390758113,0.04025789,58185.0,58181.0,0.301]
[1725390758813,0.04025789,58185.0,58181.0,0.001]
[1725390759210,0.04025789,58185.0,58181.0,0.002]
[1725390760114,0.085955,58184.0,58181.0,0.002]
[1725390760314,0.105955,58184.0,58181.0,0.002]
[1725390762012,0.085957,58183.0,58181.0,0.002]
[1725390762208,0.105957,58183.0,58181.0,0.002]
[1725390762816,0.92,58182.0,58181.0,0.002]
[1725390763015,0.11,58182.0,58181.0,0.002]
[1725390763221,0.11,58182.0,58181.0,0.001]
[1725390763417,0.11,58182.0,58181.0,0.002]
[1725390764219,0.195958,58182.0,58181.0,0.002]
[1725390765516,0.243658,58182.0,58181.0,0.002]
[1725390765916,1.163658,58182.0,58181.0,0.002]
[1725390766423,2.365256,58182.0,58181.0,0.002]
[1725390766619,2.279298,58182.0,58181.0,0.002]
[1725390766822,2.279298,58182.0,58173.0,0.00025789]
[1725390766823,2.19334,58182.0,58173.0,0.00025789]
[1725390767017,0.41234,58174.0,58173.0,0.00025789]
[1725390767225,1.05494055,58174.0,58173.0,0.00025789]
[1725390767417,1.57062055,58174.0,58173.0,0.00025789]
[1725390767625,2.57659055,58174.0,58173.0,0.00025789]
[1725390767818,2.37062055,58174.0,58173.0,0.00025789]
[1725390768015,0.92897055,58174.0,58173.0,0.00025789]
[1725390768217,0.0004,58174.0,58173.0,0.00025789]
[1725390768726,0.01099151,58174.0,58173.0,0.00025789]
[1725390769125,0.01099151,58174.0,58173.0,0.00125789]
[1725390769333,0.15556389,58174.0,58173.0,0.00125789]
[1725390769624,0.33696151,58174.0,58173.0,0.00125789]
[1725390770025,0.34555701,58174.0,58173.0,0.00125789]
[1725390771024,0.10555701,58174.0,58173.0,0.00225789]
[1725390771524,0.10555701,58174.0,58173.0,0.00125789]
[1725390771731,0.10555701,58174.0,58173.0,0.00225789]
[1725390772932,0.34555701,58174.0,58173.0,0.00225789]
[1725390773525,0.34555701,58174.0,58173.0,0.00125789]
[1725390773725,0.34555701,58174.0,58173.0,0.00225789]
[1725390773926,0.39555701,58174.0,58173.0,0.00225789]
[1725390774833,0.39555701,58174.0,58173.0,0.00125789]
[1725390775037,0.39555701,58174.0,58173.0,0.00225789]
[1725390775332,0.01958701,58174.0,58173.0,0.08722989]
[1725390775534,0.01958701,58174.0,58173.0,0.00225789]
[1725390776624,1.59914701,58174.0,58167.0,0.3608]
[1725390776822,1.59914701,58174.0,58159.0,0.3648]
[1725390776823,0.171982,58160.0,58159.0,0.3648]
[1725390777028,0.171982,58160.0,58159.0,0.3608]
[1725390777029,0.531382,58160.0,58159.0,0.3608]
[1725390777334,0.205391,58160.0,58159.0,0.3608]
[1725390777634,0.204391,58160.0,58159.0,0.3608]
[1725390778033,0.0004,58160.0,58159.0,0.446792]
[1725390778425,0.0004,58160.0,58159.0,0.3608]
[1725390778835,0.085391,58160.0,58159.0,0.3608]
[1725390779040,0.085994,58158.0,58155.0,0.24]
[1725390779333,0.084997,58156.0,58154.0,0.00025789]
[1725390779523,0.083997,58156.0,58154.0,0.00025789]
[1725390779728,0.085996,58157.0,58154.0,0.00025789]
[1725390780634,0.085996,58157.0,58155.0,0.001]
[1725390780932,0.084997,58156.0,58155.0,0.001]
[1725390782025,0.084997,58156.0,58155.0,0.002]
[1725390783333,0.01572105,58157.0,58155.0,0.241]
[1725390783539,0.005,58157.0,58155.0,0.241]
[1725390784229,0.005,58157.0,58155.0,0.24]
[1725390784425,0.005,58157.0,58155.0,0.241]
[1725390784630,0.005,58157.0,58155.0,0.001]
[1725390784631,0.086397,58156.0,58155.0,0.001]
[1725390784941,0.084998,58155.0,58154.0,0.00125789]
[1725390785135,0.085398,58155.0,58154.0,0.00125789]
[1725390785639,0.084398,58155.0,58154.0,0.00025789]
[1725390786233,0.084398,58155.0,58154.0,0.00125789]
[1725390786439,0.0054,58155.0,58154.0,0.00225789]
[1725390786737,0.0054,58155.0,58154.0,0.32825789]
[1725390787138,0.0004,58155.0,58154.0,0.32725789]
[1725390787441,0.0054,58155.0,58154.0,0.32825789]
[1725390788238,0.0054,58155.0,58154.0,1.52913789]
[1725390788434,0.0054,58155.0,58154.0,1.90146406]
[1725390789329,0.0024,58155.0,58154.0,1.90046406]
[1725390790046,0.0004,58155.0,58154.0,1.90046406]
[1725390790634,0.0004,58155.0,58154.0,1.89946406]
[1725390790942,0.0004,58155.0,58154.0,1.98846406]
[1725390791541,1e-06,58155.0,58154.0,2.07446406]
[1725390792046,1e-06,58155.0,58154.0,2.07646406]
[1725390792545,1e-06,58155.0,58154.0,2.08046406]
[1725390792840,0.00025789,58165.0,58164.0,0.17197]
[1725390793051,0.00025789,58165.0,58164.0,1.13357]
[1725390793336,0.00025789,58165.0,58164.0,2.24933]
[1725390794542,0.00025789,58165.0,58164.0,1.64933]
[1725390794729,0.08624089,58165.0,58164.0,0.7216]
[1725390794933,0.08624089,58165.0,58164.0,0.3608]
[1725390795147,0.09024089,58165.0,58164.0,0.3618]
[1725390795630,0.09024089,58165.0,58164.0,0.001]
[1725390796346,0.00225789,58165.0,58162.0,0.085987]
[1725390796537,0.0004,58163.0,58162.0,0.085987]
[1725390797644,0.00225789,58165.0,58164.0,0.0006]
[1725390798247,0.00225789,58165.0,58163.0,0.325986]
[1725390798547,0.00525789,58165.0,58164.0,0.001]
[1725390799348,0.00525789,58165.0,58164.0,0.086985]
[1725390799747,0.00525789,58165.0,58164.0,0.447785]
[1725390799944,0.00525789,58165.0,58164.0,0.3618]
[1725390800250,0.0945,58176.0,58164.0,0.3618]
[1725390800251,0.01074151,58170.0,58164.0,0.87756]
[1725390800450,0.085962,58180.0,58169.0,0.3608]
[1725390800643,0.0481,58184.0,58179.0,0.3608]
[1725390800948,0.085959,58182.0,58179.0,0.3608]
[1725390801150,0.06751355,58184.0,58179.0,0.3608]
[1725390801349,0.085957,58183.0,58181.0,0.24]
[1725390802046,0.085967,58176.0,58175.0,0.00025789]
[1725390802250,0.325967,58176.0,58175.0,0.00025789]
[1725390802548,1.441047,58176.0,58175.0,0.00025789]
[1725390803251,1.444047,58176.0,58175.0,0.00125789]
[1725390803639,1.55849942,58176.0,58175.0,0.00125789]
[1725390804146,1.74714767,58176.0,58175.0,0.00125789]
[1725390804648,1.55849942,58176.0,58175.0,0.00125789]
[1725390804849,1.7471521,58176.0,58175.0,0.00125789]
[1725390805050,1.7441521,58176.0,58175.0,0.00025789]
[1725390805351,1.7441521,58176.0,58175.0,0.00125789]
[1725390805547,1.55449942,58176.0,58175.0,0.00125789]
[1725390805848,1.55449942,58176.0,58175.0,0.00025789]
[1725390806049,1.03881942,58176.0,58175.0,0.00125789]
[1725390806356,0.30350074,58176.0,58175.0,0.08822689]
[1725390806544,0.25227816,58176.0,58175.0,0.08822689]
[1725390806744,0.06362984,58176.0,58175.0,0.08822689]
[1725390807656,0.06462984,58176.0,58175.0,0.08822689]
[1725390808158,0.06462984,58176.0,58175.0,0.00225789]
[1725390808344,0.06362984,58176.0,58175.0,0.08722689]
[1725390808544,0.06462984,58176.0,58175.0,0.08822689]
[1725390808748,0.39059684,58176.0,58175.0,0.00225789]
[1725390809150,0.99059684,58176.0,58175.0,0.00225789]
[1725390809446,2.49240898,58176.0,58175.0,0.00225789]
[1725390810648,2.43962925,58176.0,58175.0,0.00225789]
[1725390810850,2.42349711,58176.0,58175.0,0.00125789]
[1725390811049,2.42249711,58176.0,58175.0,0.00225789]
[1725390812250,2.42249711,58176.0,58175.0,0.00125789]
[1725390812453,2.42249711,58176.0,58175.0,0.00225789]
[1725390812956,1.66681711,58176.0,58175.0,0.00225789]
[1725390813173,1.75278411,58176.0,58175.0,0.00225789]
[1725390814555,1.15278411,58176.0,58175.0,0.00225789]
[1725390818049,0.06085011,58176.0,58175.0,0.00225789]
[1725390818549,0.06085011,58176.0,58175.0,0.00125789]
[1725390818853,0.06085011,58176.0,58175.0,0.00225789]
[1725390818854,0.11362619,58176.0,58175.0,0.00225789]
[1725390819049,0.21572423,58176.0,58175.0,0.00225789]
[1725390819759,0.12975723,58176.0,58175.0,0.00125789]
[1725390819959,0.12975723,58176.0,58175.0,0.08822689]
[1725390820157,0.12975723,58176.0,58175.0,0.08722689]
[1725390820361,0.12975723,58176.0,58175.0,0.08822689]
[1725390820664,0.12975723,58176.0,58175.0,0.44902689]
[1725390820860,0.07975723,58176.0,58175.0,0.53499589]
[1725390821054,0.05317586,58176.0,58175.0,1.05067589]
[1725390821456,0.05317586,58176.0,58175.0,1.65067589]
[1725390822155,0.05317586,58176.0,58175.0,1.56470689]
[1725390822356,0.05317586,58176.0,58175.0,0.96470689]
[1725390823556,0.05317586,58176.0,58175.0,0.44902689]
[1725390824259,0.05317586,58176.0,58175.0,0.96470689]
[1725390824460,0.05317586,58176.0,58175.0,1.56470689]
[1725390824862,0.05317586,58176.0,58175.0,1.65067589]
[1725390825153,0.05317586,58176.0,58175.0,1.64967589]
[1725390825863,0.0004,58176.0,58175.0,1.64967589]
[1725390826064,0.0004,58176.0,58175.0,1.64867589]
[1725390826261,0.0004,58176.0,58175.0,1.64967589]
[1725390826764,0.0004,58176.0,58175.0,1.05267589]
[1725390827863,0.0004,58176.0,58175.0,0.60505789]
[1725390827864,0.086367,58176.0,58175.0,0.60505789]
[1725390828165,0.0004,58176.0,58175.0,0.69102689]
[1725390828361,0.086367,58176.0,58175.0,0.69102689]
[1725390828963,0.086367,58176.0,58175.0,0.69202689]
[1725390829161,0.0004,58176.0,58175.0,0.69202689]
[1725390829361,0.0004,58176.0,58175.0,0.77699589]
[1725390829568,0.0004,58176.0,58175.0,0.77399589]
[1725390830268,0.0004,58176.0,58175.0,0.68902689]
[1725390832263,0.0004,58176.0,58175.0,0.70219715]
[1725390832872,0.0004,58176.0,58175.0,0.68902689]
[1725390835474,0.0004,58176.0,58175.0,0.68802689]
[1725390841574,0.0165296,58176.0,58175.0,0.68802689]
[1725390843285,0.06930028,58176.0,58175.0,0.68802689]
[1725390847582,0.06930028,58176.0,58175.0,1.97564489]
[1725390847583,0.05317068,58176.0,58175.0,1.97564489]
[1725390848391,0.05317068,58176.0,58175.0,0.44802689]
[1725390848888,0.0004,58176.0,58175.0,0.44802689]
[1725390849884,0.0004,58176.0,58175.0,0.53399589]
[1725390850483,0.0004,58176.0,58175.0,1.64967589]
[1725390850686,0.0004,58176.0,58175.0,1.04967589]
[1725390850887,0.0004,58176.0,58175.0,0.53399589]
[1725390851687,0.0004,58176.0,58175.0,0.44802689]
[1725390852391,0.086367,58176.0,58175.0,0.36205789]
[1725390852693,0.086367,58176.0,58175.0,0.44802689]
[1725390852894,0.0004,58176.0,58175.0,0.44802689]
[1725390853589,0.0004,58176.0,58175.0,0.36205789]
[1725390853893,0.0481,58176.0,58175.0,0.36205789]
[1725390854992,0.0481,58176.0,58175.0,0.44802689]
[1725390856196,0.0481,58176.0,58175.0,0.44702689]
[1725390858090,0.0481,58176.0,58175.0,0.44802689]
[1725390858990,0.0481,58176.0,58175.0,0.44702689]
[1725390860698,0.0004,58176.0,58175.0,0.44702689]
[1725390860892,0.0004,58176.0,58175.0,0.61896489]
[1725390861284,0.0004,58176.0,58175.0,0.66826489]
[1725390862087,0.0004,58176.0,58175.0,0.75423389]
[1725390862589,0.0004,58176.0,58175.0,1.18394489]
[1725390862896,0.0004,58176.0,58175.0,1.78394489]
[1725390863093,0.0004,58176.0,58175.0,1.79732673]
[1725390865293,0.0004,58176.0,58175.0,1.88257656]
[1725390868099,0.0004,58176.0,58175.0,1.96854556]
[1725390868504,0.0004,58176.0,58175.0,1.88329573]
[1725390868901,1e-06,58176.0,58175.0,1.88329573]
[1725390869296,0.004,58190.0,58185.0,0.171908]
[1725390869604,0.085944,58192.0,58185.0,0.772708]
[1725390870601,0.01381445,58186.0,58185.0,0.772708]
[1725390870909,0.01381445,58186.0,58185.0,0.858662]
[1725390871203,0.01381445,58186.0,58185.0,0.859662]
[1725390871601,0.01381445,58186.0,58185.0,0.860662]
[1725390878011,0.01381445,58186.0,58185.0,0.448754]
[1725390878211,0.09976645,58186.0,58185.0,0.002]
[1725390878401,1.35131845,58186.0,58185.0,0.002]
[1725390878707,0.085954,58185.0,58184.0,0.05108398]
[1725390878908,0.601554,58185.0,58184.0,0.05108398]
[1725390879107,1.201554,58185.0,58184.0,0.05108398]
[1725390879315,2.121554,58185.0,58184.0,0.05108398]
[1725390879499,2.161554,58185.0,58180.0,0.06811198]
[1725390879704,0.32596,58181.0,58180.0,0.06811198]
[1725390879906,1.4406,58181.0,58180.0,0.06811198]
[1725390881407,1.4396,58181.0,58180.0,0.06811198]
[1725390881615,1.4396,58181.0,58180.0,0.06911198]
[1725390882413,1.4426,58181.0,58180.0,0.06911198]
[1725390882914,1.4426,58181.0,58180.0,0.07011198]
[1725390883715,1.94936,58181.0,58180.0,0.07011198]
[1725390884311,1.58856,58181.0,58180.0,0.07011198]
[1725390885412,0.47292,58181.0,58180.0,0.07011198]
[1725390886608,0.41292,58181.0,58180.0,0.07011198]
[1725390888017,0.32696,58181.0,58180.0,0.07011198]
[1725390888821,0.243,58181.0,58180.0,0.07011198]
[1725390889023,0.003,58181.0,58180.0,0.15607298]
[1725390889316,0.32896,58181.0,58180.0,0.07011198]
[1725390890212,0.32896,58181.0,58180.0,0.002]
[1725390890612,0.32596,58181.0,58180.0,0.001]
[1725390890919,0.32796,58181.0,58180.0,0.001]
[1725390891115,0.32796,58181.0,58180.0,0.002]
[1725390891710,0.32596,58181.0,58180.0,0.001]
[1725390891911,0.32796,58181.0,58180.0,0.002]
[1725390893224,0.38073138,58181.0,58180.0,0.002]
[1725390894612,0.083961,58180.0,58178.0,0.085964]
[1725390895525,0.081961,58180.0,58178.0,0.085964]
[1725390896609,0.05277128,58179.0,58178.0,0.085964]
[1725390897624,0.05277128,58179.0,58178.0,0.086964]
[1725390898417,0.05777128,58179.0,58178.0,0.086964]
[1725390899727,0.14373428,58179.0,58178.0,0.001]
[1725390900722,0.14273428,58179.0,58178.0,0.001]
[1725390901219,0.089963,58179.0,58178.0,0.001]
[1725390902435,0.175926,58179.0,58178.0,0.001]
[1725390902749,0.257901,58176.0,58169.0,0.004]
[1725390902917,0.24,58170.0,58162.0,0.004]
[1725390903121,0.24,58170.0,58156.0,0.4059]
[1725390903122,0.325986,58163.0,58156.0,0.4099]
[1725390903326,0.325993,58159.0,58156.0,0.4059]
[1725390903524,0.24,58159.0,58156.0,0.446797]
[1725390903719,0.24,58159.0,58156.0,0.3608]
[1725390904026,0.082995,58158.0,58156.0,0.3608]
[1725390904329,0.24,58159.0,58156.0,0.3608]
[1725390904622,0.25340032,58159.0,58156.0,0.3748]
[1725390905629,0.085995,58157.0,58156.0,0.3878]
[1725390905929,0.085995,58157.0,58156.0,0.027]
[1725390906822,0.325995,58157.0,58156.0,0.027]
[1725390907018,0.085995,58157.0,58156.0,0.027]
[1725390907220,0.25340032,58159.0,58156.0,0.3878]
[1725390907424,0.085995,58158.0,58156.0,0.3748]
[1725390908321,0.085995,58158.0,58156.0,0.3738]
[1725390908522,0.085995,58158.0,58156.0,0.3618]
[1725390908721,0.086995,58158.0,58156.0,0.3618]
[1725390909938,0.001,58158.0,58157.0,0.085995]
[1725390910127,0.001,58158.0,58157.0,0.179195]
[1725390911219,0.001,58158.0,58157.0,0.180195]
[1725390911722,0.01340032,58159.0,58157.0,0.180195]
[1725390911927,0.003,58158.0,58157.0,0.180195]
[1725390913032,0.003,58158.0,58157.0,0.0483]
[1725390913033,0.085994,58158.0,58157.0,0.0483]
[1725390913439,0.241988,58158.0,58157.0,0.001]
[1725390913927,0.241988,58158.0,58153.0,0.3608]
[1725390913928,0.085,58154.0,58153.0,0.3608]
[1725390914127,0.325,58154.0,58153.0,0.3608]
[1725390914333,0.086001,58153.0,58152.0,0.00025789]
[1725390914535,0.186001,58153.0,58152.0,0.00025789]
[1725390914737,0.085401,58153.0,58152.0,0.00025789]
[1725390915442,0.080401,58153.0,58152.0,0.00025789]
[1725390916137,0.080401,58153.0,58152.0,0.00325789]
[1725390917836,0.080401,58153.0,58152.0,0.00925789]
[1725390918826,0.166402,58153.0,58152.0,0.00925789]
[1725390919028,0.216402,58153.0,58152.0,0.00925789]
[1725390919936,0.22959531,58153.0,58152.0,0.00925789]
[1725390923741,0.83147631,58153.0,58152.0,0.00925789]
[1725390923947,1.43147631,58153.0,58152.0,0.00925789]
[1725390924742,2.35147631,58153.0,58152.0,0.00925789]
[1725390924944,0.326014,58144.0,58143.0,0.004]
[1725390925146,0.086022,58139.0,58138.0,0.3608]
[1725390925336,0.326422,58139.0,58138.0,0.3608]
[1725390925535,0.326022,58139.0,58138.0,0.3608]
[1725390926932,0.326022,58139.0,58136.0,0.0473]
[1725390926933,0.086025,58137.0,58136.0,0.0473]
[1725390927135,0.0004,58137.0,58133.0,0.00025789]
[1725390927434,0.318029,58134.0,58133.0,0.00025789]
[1725390928331,0.446829,58134.0,58133.0,0.00025789]
[1725390928533,0.686829,58134.0,58133.0,0.00025789]
[1725390929042,0.686829,58134.0,58133.0,0.00125789]
[1725390929243,0.701829,58134.0,58133.0,0.00225789]
[1725390930343,0.6158,58134.0,58133.0,0.00225789]
[1725390930851,0.015,58134.0,58133.0,0.08828889]
[1725390935442,0.015,58134.0,58133.0,0.41431989]
[1725390935637,0.015,58134.0,58133.0,0.50035089]
[1725390936045,0.015,58134.0,58133.0,0.51389742]
[1725390936845,0.015,58134.0,58133.0,1.71596842]
[1725390937045,0.0004,58137.0,58136.0,0.498078]
[1725390937247,0.0004,58137.0,58136.0,0.858878]
[1725390939055,0.244,58148.0,58143.0,0.172032]
[1725390939258,0.24,58148.0,58143.0,0.532832]
[1725390940142,0.00025789,58144.0,58143.0,0.532832]
[1725390941346,0.00125789,58144.0,58143.0,0.532832]
[1725390942448,0.00125789,58144.0,58143.0,0.446816]
[1725390942650,0.00125789,58144.0,58143.0,0.532832]
[1725390945648,0.00125789,58144.0,58143.0,0.446816]
[1725390946652,0.00025789,58144.0,58143.0,0.446816]
[1725390948057,0.08627189,58144.0,58143.0,0.446816]
[1725390948562,0.08627189,58144.0,58143.0,0.3608]
[1725390949870,0.20627189,58144.0,58143.0,0.3608]
[1725390950562,0.20627189,58144.0,58140.0,0.08602]
[1725390950765,0.2404,58141.0,58140.0,0.08602]
[1725390951562,0.2404,58141.0,58136.0,0.3608]
[1725390951758,0.238,58137.0,58136.0,0.3608]
[1725390951969,0.086021,58140.0,58139.0,0.086022]
[1725390952264,0.24,58140.0,58139.0,0.086022]
[1725390952657,0.326021,58140.0,58136.0,0.446825]
[1725390952853,0.2404,58137.0,58136.0,0.446825]
[1725390954664,0.2414,58137.0,58136.0,0.446825]
[1725390955856,0.0014,58137.0,58136.0,0.446825]
[1725390957454,0.087425,58137.0,58136.0,0.446825]
[1725390960468,0.327425,58137.0,58136.0,0.446825]
[1725390961466,0.0014,58137.0,58136.0,0.446825]
[1725390961666,0.0014,58137.0,58136.0,0.686825]
[1725390961969,0.0014,58137.0,58136.0,0.858877]
[1725390963368,0.0004,58137.0,58136.0,0.858877]
[1725390963566,0.0004,58137.0,58136.0,0.618877]
[1725390964254,0.0004,58137.0,58136.0,0.619877]
[1725390964460,0.0004,58137.0,58136.0,0.859877]
[1725390964768,0.0004,58137.0,58136.0,0.858877]
[1725390964973,0.0004,58137.0,58136.0,0.860877]
[1725390965164,0.0004,58137.0,58136.0,0.861877]
[1725390965362,0.0004,58137.0,58136.0,0.859877]
[1725390965568,0.0004,58137.0,58136.0,0.862877]
[1725390965867,0.326425,58137.0,58136.0,0.3648]
[1725390966271,0.326425,58137.0,58136.0,0.450826]
[1725390966272,1.246425,58137.0,58136.0,0.450826]
[1725390966565,0.086425,58137.0,58136.0,0.450826]
[1725390967058,0.086425,58137.0,58136.0,0.449826]
[1725390967261,0.086425,58137.0,58136.0,0.448826]
[1725390967461,0.326425,58137.0,58136.0,0.448826]
[1725390967973,0.326425,58137.0,58136.0,0.446826]
[1725390967974,0.327425,58137.0,58136.0,0.446826]
[1725390970261,0.086029,58134.0,58133.0,0.00025789]
[1725390970570,0.326429,58134.0,58133.0,0.00025789]
[1725390971357,0.446429,58134.0,58133.0,0.00025789]
[1725390971669,0.446429,58134.0,58133.0,0.00325789]
[1725390973266,0.446429,58134.0,58133.0,0.00525789]
[1725390974762,0.45946744,58134.0,58133.0,0.00525789]
[1725390975269,0.37343844,58134.0,58133.0,0.00525789]
[1725390976273,0.37343844,58134.0,58133.0,0.09128889]
[1725390977969,0.13343844,58134.0,58133.0,0.09128889]
[1725390978160,0.01343844,58134.0,58133.0,0.17731989]
[1725390978364,0.0004,58134.0,58133.0,0.17731989]
[1725390981676,0.0004,58134.0,58133.0,0.09128889]
[1725390982074,0.0004,58134.0,58133.0,0.17731989]
[1725390982266,0.0004,58134.0,58133.0,0.50335089]
[1725390982971,0.0004,58134.0,58133.0,1.61939089]
[1725390983171,0.00025789,58144.0,58143.0,0.086016]
[1725390983377,0.00025789,58144.0,58143.0,0.772832]
[1725390984869,0.00625789,58144.0,58143.0,0.773832]
[1725390985570,0.00625789,58144.0,58143.0,0.774832]
[1725390985771,0.00825789,58144.0,58143.0,0.774832]
[1725390986974,0.00725789,58144.0,58143.0,0.774832]
[1725390987569,0.00225789,58144.0,58143.0,0.776832]
[1725390987769,0.00225789,58144.0,58143.0,0.450816]
[1725390987973,0.24225789,58144.0,58143.0,0.450816]
[1725390988171,0.24225789,58144.0,58143.0,0.090016]
[1725390988470,0.32827189,58144.0,58143.0,0.090016]
[1725390988870,0.32627189,58144.0,58143.0,0.091016]
[1725390989672,0.32727189,58144.0,58143.0,0.089016]
[1725390990185,0.32727189,58144.0,58143.0,0.086016]
[1725390991883,0.24125789,58144.0,58143.0,0.086016]
[1725390992178,0.32727289,58144.0,58141.0,0.3608]
[1725390992377,0.32727289,58144.0,58141.0,0.446817]
[1725390992979,0.24,58142.0,58141.0,0.446817]
[1725390993478,0.24,58142.0,58141.0,0.449817]
[1725390994075,0.326017,58142.0,58141.0,0.3638]
[1725390994272,0.326017,58142.0,58141.0,0.003]
[1725390996285,0.331017,58142.0,58141.0,0.001]
[1725390996686,0.086023,58138.0,58137.0,0.086024]
[1725390996890,0.326023,58138.0,58137.0,0.086024]
[1725390997274,0.086025,58137.0,58136.0,0.3608]
[1725390997880,0.24,58138.0,58133.0,0.00025789]
[1725390997881,0.086026,58136.0,58133.0,0.00025789]
[1725390998182,0.412058,58134.0,58133.0,0.00025789]
[1725390998378,0.548087,58134.0,58133.0,0.00025789]
[1725390998583,1.468087,58134.0,58133.0,0.00025789]
[1725390998979,2.584127,58134.0,58133.0,1e-08]
[1725390999186,0.172086,58125.0,58124.0,0.004]